{"text_format":"1","workbook":"xlsx","n_sheets":3,"sheets":["Danh sách Kiểm kê","Danh sách Chọn Kiểm kê","Tìm Thùng"],"not_rendered":{"charts":0,"images":0,"macros":1,"external_links":0,"defined_names":8,"comments":0,"pivot_tables":0},"unopened":[],"bounds":{"document_bytes":16777216,"sheet_cells":100000,"rows_first":2000,"rows_last":500,"rows_between":2000,"halvings":0,"cell_chars":16384,"cell_head_chars":4096},"cells_cut":0,"cells_raw":0,"read":"whole","date_system":"1900"}

{"sheet":"Danh sách Kiểm kê","index":0,"n_rows":15,"n_cols":11,"rows_kept":15,"cut":false,"hidden":false,"merged":[]}
[null,"DANH SÁCH KIỂM KÊ"]
[null,"TỔNG GIÁ TRỊ KIỂM KÊ:","MỤC KIỂM KÊ:","SỐ THÙNG:","DANH SÁCH CHỌN KIỂM KÊ","TÌM THÙNG"]
[null,{"$f":"SUM(Danh_sách_Kiểm_kê[GIÁ TRỊ KIỂM KÊ])","v":4649},{"$f":"COUNTA(Danh_sách_Kiểm_kê[MÔ TẢ])","v":11},{"$f":"SUMPRODUCT((1/COUNTIF(Danh_sách_Kiểm_kê[THÙNG '#],Danh_sách_Kiểm_kê[THÙNG '#]&\"\")))","v":6}]
[null,"SKU","MÔ TẢ","THÙNG #","VỊ TRÍ","ĐƠN VỊ","SL","SL ĐẶT HÀNG LẠI","CHI PHÍ","GIÁ TRỊ KIỂM KÊ","ĐẶT HÀNG LẠI"]
[null,"SP7875","Mục 1","T345",{"$f":"IFERROR(VLOOKUP(Danh_sách_Kiểm_kê[[#This Row],[THÙNG '#]],Tra_cứu_Thùng[],3,FALSE),\"\")","v":"Hàng 2, khoảng trống 1"},"Mỗi",20,10,30,{"$f":"Danh_sách_Kiểm_kê[[#This Row],[SL]]*Danh_sách_Kiểm_kê[[#This Row],[CHI PHÍ]]","v":600},{"$f":"IFERROR(IF(Danh_sách_Kiểm_kê[[#This Row],[SL]]<=Danh_sách_Kiểm_kê[[#This Row],[SL ĐẶT HÀNG LẠI]],1,0),0)","v":0}]
[null,"TR87680","Mục 2","T345",{"$f":"IFERROR(VLOOKUP(Danh_sách_Kiểm_kê[[#This Row],[THÙNG '#]],Tra_cứu_Thùng[],3,FALSE),\"\")","v":"Hàng 2, khoảng trống 1"},"Mỗi",30,15,40,{"$f":"Danh_sách_Kiểm_kê[[#This Row],[SL]]*Danh_sách_Kiểm_kê[[#This Row],[CHI PHÍ]]","v":1200},{"$f":"IFERROR(IF(Danh_sách_Kiểm_kê[[#This Row],[SL]]<=Danh_sách_Kiểm_kê[[#This Row],[SL ĐẶT HÀNG LẠI]],1,0),0)","v":0}]
[null,"MK676554","Mục 3","T5789",{"$f":"IFERROR(VLOOKUP(Danh_sách_Kiểm_kê[[#This Row],[THÙNG '#]],Tra_cứu_Thùng[],3,FALSE),\"\")","v":"Hàng 1, khoảng trống 1"},"Mỗi",10,5,5,{"$f":"Danh_sách_Kiểm_kê[[#This Row],[SL]]*Danh_sách_Kiểm_kê[[#This Row],[CHI PHÍ]]","v":50},{"$f":"IFERROR(IF(Danh_sách_Kiểm_kê[[#This Row],[SL]]<=Danh_sách_Kiểm_kê[[#This Row],[SL ĐẶT HÀNG LẠI]],1,0),0)","v":0}]
[null,"YE98767","Mục 4","T9876",{"$f":"IFERROR(VLOOKUP(Danh_sách_Kiểm_kê[[#This Row],[THÙNG '#]],Tra_cứu_Thùng[],3,FALSE),\"\")","v":"Hàng 3, khoảng trống 2"},"Hộp (10 ct)",40,10,15,{"$f":"Danh_sách_Kiểm_kê[[#This Row],[SL]]*Danh_sách_Kiểm_kê[[#This Row],[CHI PHÍ]]","v":600},{"$f":"IFERROR(IF(Danh_sách_Kiểm_kê[[#This Row],[SL]]<=Danh_sách_Kiểm_kê[[#This Row],[SL ĐẶT HÀNG LẠI]],1,0),0)","v":0}]
[null,"XR23423","Mục 5","T098",{"$f":"IFERROR(VLOOKUP(Danh_sách_Kiểm_kê[[#This Row],[THÙNG '#]],Tra_cứu_Thùng[],3,FALSE),\"\")","v":"Hàng 3, khoảng trống 1"},"Mỗi",12,10,26,{"$f":"Danh_sách_Kiểm_kê[[#This Row],[SL]]*Danh_sách_Kiểm_kê[[#This Row],[CHI PHÍ]]","v":312},{"$f":"IFERROR(IF(Danh_sách_Kiểm_kê[[#This Row],[SL]]<=Danh_sách_Kiểm_kê[[#This Row],[SL ĐẶT HÀNG LẠI]],1,0),0)","v":0}]
[null,"PW98762","Mục 6","T345",{"$f":"IFERROR(VLOOKUP(Danh_sách_Kiểm_kê[[#This Row],[THÙNG '#]],Tra_cứu_Thùng[],3,FALSE),\"\")","v":"Hàng 2, khoảng trống 1"},"Mỗi",7,10,50,{"$f":"Danh_sách_Kiểm_kê[[#This Row],[SL]]*Danh_sách_Kiểm_kê[[#This Row],[CHI PHÍ]]","v":350},{"$f":"IFERROR(IF(Danh_sách_Kiểm_kê[[#This Row],[SL]]<=Danh_sách_Kiểm_kê[[#This Row],[SL ĐẶT HÀNG LẠI]],1,0),0)","v":1}]
[null,"BM87684","Mục 7","T349",{"$f":"IFERROR(VLOOKUP(Danh_sách_Kiểm_kê[[#This Row],[THÙNG '#]],Tra_cứu_Thùng[],3,FALSE),\"\")","v":"Hàng 1, khoảng trống 2"},"Mỗi",10,5,10,{"$f":"Danh_sách_Kiểm_kê[[#This Row],[SL]]*Danh_sách_Kiểm_kê[[#This Row],[CHI PHÍ]]","v":100},{"$f":"IFERROR(IF(Danh_sách_Kiểm_kê[[#This Row],[SL]]<=Danh_sách_Kiểm_kê[[#This Row],[SL ĐẶT HÀNG LẠI]],1,0),0)","v":0}]
[null,"BH67655","Mục 8","T5789",{"$f":"IFERROR(VLOOKUP(Danh_sách_Kiểm_kê[[#This Row],[THÙNG '#]],Tra_cứu_Thùng[],3,FALSE),\"\")","v":"Hàng 1, khoảng trống 1"},"Mỗi",19,10,3,{"$f":"Danh_sách_Kiểm_kê[[#This Row],[SL]]*Danh_sách_Kiểm_kê[[#This Row],[CHI PHÍ]]","v":57},{"$f":"IFERROR(IF(Danh_sách_Kiểm_kê[[#This Row],[SL]]<=Danh_sách_Kiểm_kê[[#This Row],[SL ĐẶT HÀNG LẠI]],1,0),0)","v":0}]
[null,"WT98768","Mục 9","T9875",{"$f":"IFERROR(VLOOKUP(Danh_sách_Kiểm_kê[[#This Row],[THÙNG '#]],Tra_cứu_Thùng[],3,FALSE),\"\")","v":"Hàng 2, khoảng trống 2"},"Gói (5 ct)",20,30,14,{"$f":"Danh_sách_Kiểm_kê[[#This Row],[SL]]*Danh_sách_Kiểm_kê[[#This Row],[CHI PHÍ]]","v":280},{"$f":"IFERROR(IF(Danh_sách_Kiểm_kê[[#This Row],[SL]]<=Danh_sách_Kiểm_kê[[#This Row],[SL ĐẶT HÀNG LẠI]],1,0),0)","v":1}]
[null,"TS3456","Mục 10","T349",{"$f":"IFERROR(VLOOKUP(Danh_sách_Kiểm_kê[[#This Row],[THÙNG '#]],Tra_cứu_Thùng[],3,FALSE),\"\")","v":"Hàng 1, khoảng trống 2"},"Mỗi",15,8,60,{"$f":"Danh_sách_Kiểm_kê[[#This Row],[SL]]*Danh_sách_Kiểm_kê[[#This Row],[CHI PHÍ]]","v":900},{"$f":"IFERROR(IF(Danh_sách_Kiểm_kê[[#This Row],[SL]]<=Danh_sách_Kiểm_kê[[#This Row],[SL ĐẶT HÀNG LẠI]],1,0),0)","v":0}]
[null,"WDG123","Mục 11","T349",{"$f":"IFERROR(VLOOKUP(Danh_sách_Kiểm_kê[[#This Row],[THÙNG '#]],Tra_cứu_Thùng[],3,FALSE),\"\")","v":"Hàng 1, khoảng trống 2"},"Mỗi",25,15,8,{"$f":"Danh_sách_Kiểm_kê[[#This Row],[SL]]*Danh_sách_Kiểm_kê[[#This Row],[CHI PHÍ]]","v":200},{"$f":"IFERROR(IF(Danh_sách_Kiểm_kê[[#This Row],[SL]]<=Danh_sách_Kiểm_kê[[#This Row],[SL ĐẶT HÀNG LẠI]],1,0),0)","v":0}]

{"sheet":"Danh sách Chọn Kiểm kê","index":1,"n_rows":9,"n_cols":9,"rows_kept":9,"cut":false,"hidden":false,"merged":[]}
[null,"DANH SÁCH CHỌN KIỂM KÊ"]
[null,null,"DANH SÁCH KIỂM KÊ"]
[]
[null,"ĐƠN HÀNG #","SKU","SL CHỌN","SL CÓ SẴN","MÔ TẢ MỤC","ĐƠN VỊ","THÙNG #","VỊ TRÍ"]
[null,"TP001-1","SP7875",3,{"$f":"IFERROR(VLOOKUP(InventoryPickList[[#This Row],[SKU]],Danh_sách_Kiểm_kê[],6,FALSE),\"\")","v":20},{"$f":"IFERROR(VLOOKUP(InventoryPickList[[#This Row],[SKU]],Danh_sách_Kiểm_kê[],2,FALSE),\"\")","v":"Mục 1"},{"$f":"IFERROR(VLOOKUP(InventoryPickList[[#This Row],[SKU]],Danh_sách_Kiểm_kê[],5,FALSE),\"\")","v":"Mỗi"},{"$f":"IFERROR(VLOOKUP(InventoryPickList[[#This Row],[SKU]],Danh_sách_Kiểm_kê[],3,FALSE),\"\")","v":"T345"},{"$f":"IFERROR(VLOOKUP(InventoryPickList[[#This Row],[SKU]],Danh_sách_Kiểm_kê[],4,FALSE),\"\")","v":"Hàng 2, khoảng trống 1"}]
[null,"TP001-1","YE98767",1,{"$f":"IFERROR(VLOOKUP(InventoryPickList[[#This Row],[SKU]],Danh_sách_Kiểm_kê[],6,FALSE),\"\")","v":40},{"$f":"IFERROR(VLOOKUP(InventoryPickList[[#This Row],[SKU]],Danh_sách_Kiểm_kê[],2,FALSE),\"\")","v":"Mục 4"},{"$f":"IFERROR(VLOOKUP(InventoryPickList[[#This Row],[SKU]],Danh_sách_Kiểm_kê[],5,FALSE),\"\")","v":"Hộp (10 ct)"},{"$f":"IFERROR(VLOOKUP(InventoryPickList[[#This Row],[SKU]],Danh_sách_Kiểm_kê[],3,FALSE),\"\")","v":"T9876"},{"$f":"IFERROR(VLOOKUP(InventoryPickList[[#This Row],[SKU]],Danh_sách_Kiểm_kê[],4,FALSE),\"\")","v":"Hàng 3, khoảng trống 2"}]
[null,"TP001-1","BM87684",2,{"$f":"IFERROR(VLOOKUP(InventoryPickList[[#This Row],[SKU]],Danh_sách_Kiểm_kê[],6,FALSE),\"\")","v":10},{"$f":"IFERROR(VLOOKUP(InventoryPickList[[#This Row],[SKU]],Danh_sách_Kiểm_kê[],2,FALSE),\"\")","v":"Mục 7"},{"$f":"IFERROR(VLOOKUP(InventoryPickList[[#This Row],[SKU]],Danh_sách_Kiểm_kê[],5,FALSE),\"\")","v":"Mỗi"},{"$f":"IFERROR(VLOOKUP(InventoryPickList[[#This Row],[SKU]],Danh_sách_Kiểm_kê[],3,FALSE),\"\")","v":"T349"},{"$f":"IFERROR(VLOOKUP(InventoryPickList[[#This Row],[SKU]],Danh_sách_Kiểm_kê[],4,FALSE),\"\")","v":"Hàng 1, khoảng trống 2"}]
[null,"TP001-1","TS3456",6,{"$f":"IFERROR(VLOOKUP(InventoryPickList[[#This Row],[SKU]],Danh_sách_Kiểm_kê[],6,FALSE),\"\")","v":15},{"$f":"IFERROR(VLOOKUP(InventoryPickList[[#This Row],[SKU]],Danh_sách_Kiểm_kê[],2,FALSE),\"\")","v":"Mục 10"},{"$f":"IFERROR(VLOOKUP(InventoryPickList[[#This Row],[SKU]],Danh_sách_Kiểm_kê[],5,FALSE),\"\")","v":"Mỗi"},{"$f":"IFERROR(VLOOKUP(InventoryPickList[[#This Row],[SKU]],Danh_sách_Kiểm_kê[],3,FALSE),\"\")","v":"T349"},{"$f":"IFERROR(VLOOKUP(InventoryPickList[[#This Row],[SKU]],Danh_sách_Kiểm_kê[],4,FALSE),\"\")","v":"Hàng 1, khoảng trống 2"}]
[null,"TP001-1","MK676554",3,{"$f":"IFERROR(VLOOKUP(InventoryPickList[[#This Row],[SKU]],Danh_sách_Kiểm_kê[],6,FALSE),\"\")","v":10},{"$f":"IFERROR(VLOOKUP(InventoryPickList[[#This Row],[SKU]],Danh_sách_Kiểm_kê[],2,FALSE),\"\")","v":"Mục 3"},{"$f":"IFERROR(VLOOKUP(InventoryPickList[[#This Row],[SKU]],Danh_sách_Kiểm_kê[],5,FALSE),\"\")","v":"Mỗi"},{"$f":"IFERROR(VLOOKUP(InventoryPickList[[#This Row],[SKU]],Danh_sách_Kiểm_kê[],3,FALSE),\"\")","v":"T5789"},{"$f":"IFERROR(VLOOKUP(InventoryPickList[[#This Row],[SKU]],Danh_sách_Kiểm_kê[],4,FALSE),\"\")","v":"Hàng 1, khoảng trống 1"}]

{"sheet":"Tìm Thùng","index":2,"n_rows":11,"n_cols":7,"rows_kept":11,"cut":false,"hidden":false,"merged":[]}
[null,"TÌM THÙNG"]
[null,"DANH SÁCH KIỂM KÊ"]
[]
[null,"THÙNG #","MÔ TẢ","VỊ TRÍ","ĐỘ RỘNG","CHIỀU CAO","CHIỀU DÀI"]
[null,"T345","Thùng lớn","Hàng 2, khoảng trống 1",50,10,10]
[null,"T5789","Thùng nhỏ","Hàng 1, khoảng trống 1",25,5,5]
[null,"T9876","Thùng lớn","Hàng 3, khoảng trống 2",50,10,10]
[null,"T098","Thùng vừa","Hàng 3, khoảng trống 1",30,7,10]
[null,"T349","Thùng nhỏ","Hàng 1, khoảng trống 2",25,5,5]
[null,"T5789","Thùng lớn","Hàng 4, khoảng trống 5",50,10,10]
[null,"T9875","Thùng lớn","Hàng 2, khoảng trống 2",50,10,10]